Workbook

Sheet tabula (hidden)
C2: "Lielā viktorīna" (tiešsaistē / vebinārā) | 2024.gada 8.decembris
B3: Grupa | C3: # | D3: Dalībnieks | Raunds | Tēma | Max punkti raundā (bez bonusiem) | E3: 1 | F3: 2 | G3: 3 | H3: 4 | I3: 5 | J3: 6 | K3: 7 | L3: 8 | M3: 9 | N3: 10 | O3: KOPĀ | P3: Laiks kopā uz pareizajām atbildēm | Q3: Pareizās atbildes (max 69) | R3: Vid.laiks uz 1 pareizo atb.
E4: Pavediens | F4: Divas atbildes | G4: Ekspresis | H4: Burtu mīkla | I4: Ķēde | J4: Latvija | K4: Risks: Dažādi | L4: Kas kopīgs? | M4: Liekais pazūd ārpus reklāmām | N4: Audio
E5: 150 | F5: =16*2*6 -> 192 | G5: 240 | H5: 180 | I5: 200 | J5: 150 | K5: 120 | L5: 180 | M5: =26*6 -> 156 | N5: 150 | O5: =SUM(E5:N5) -> 1718
D6: Vidējie rādītāji | E6: =ROUND(AVERAGE(E7:E73),1) -> 76.9 | F6: =ROUND(AVERAGE(F7:F73),1) -> 97 | G6: =ROUND(AVERAGE(G7:G73),1) -> 127.6 | H6: =ROUND(AVERAGE(H7:H73),1) -> 79.6 | I6: =ROUND(AVERAGE(I7:I73),1) -> 99.9 | J6: =ROUND(AVERAGE(J7:J73),1) -> 68.9 | K6: =ROUND(AVERAGE(K7:K73),1) -> 6.9 | L6: =ROUND(AVERAGE(L7:L73),1) -> 103.2 | M6: =ROUND(AVERAGE(M7:M73),1) -> 81.9 | N6: =ROUND(AVERAGE(N7:N73),1) -> 65.1 | O6: =ROUND(AVERAGE(O7:O73),1) -> 806.9 | Q6: =ROUND(AVERAGE(Q7:Q83),2) -> 46.69
B7: 1 | C7: 1 | D7: Sindija DJV | E7: 136 | F7: 174 | G7: 212 | H7: 110 | I7: 169 | J7: 114 | K7: 3 | L7: 159 | M7: 112 | N7: 87 | O7: 1276 | P7: 05 min. 28,903 | Q7: 59 | R7: 05,575 sek.
B8: 1 | C8: 2 | D8: Pundurplanēta | E8: 142 | F8: 147 | G8: 148 | H8: 144 | I8: 167 | J8: 101 | K8: 29 | L8: 145 | M8: 129 | N8: 107 | O8: 1259 | P8: 07 min. 06,205 | Q8: 60 | R8: 07,103 sek.
B9: 3 | C9: 3 | D9: Bagete | E9: 112 | F9: 113 | G9: 160 | H9: 126 | I9: 181 | J9: 103 | K9: 25 | L9: 136 | M9: 110 | N9: 100 | O9: 1166 | P9: 08 min. 42,695 | Q9: 60 | R9: 08,712 sek.
B10: 1 | C10: 4 | D10: Bunkurs_13 | E10: 100 | F10: 123 | G10: 161 | H10: 117 | I10: 161 | J10: 100 | K10: 29 | L10: 156 | M10: 114 | N10: 85 | O10: 1146 | P10: 08 min. 42,823 | Q10: 59 | R10: 08,861 sek.
B11: 3 | C11: 5 | D11: GoGoFresh | E11: 94 | F11: 111 | G11: 200 | H11: 98 | I11: 86 | J11: 88 | K11: 36 | L11: 124 | M11: 114 | N11: 133 | O11: 1084 | P11: 08 min. 42,103 | Q11: 57 | R11: 09,160 sek.
B12: 1 | C12: 6 | D12: Bugatti 21023 | E12: 112 | F12: 120 | G12: 131 | H12: 113 | I12: 141 | J12: 97 | K12: 24 | L12: 150 | M12: 104 | N12: 91 | O12: 1083 | P12: 12 min. 06,900 | Q12: 63 | R12: 11,538 sek.
B13: 1 | C13: 7 | D13: Kapteinis M. Orgāns | E13: 123 | F13: 155 | G13: 173 | H13: 141 | I13: 139 | J13: 45 | K13: 33 | L13: 136 | M13: 111 | N13: 23 | O13: 1079 | P13: 05 min. 19,486 | Q13: 51 | R13: 06,264 sek.
B14: 2 | C14: 8 | D14: Van Tūži | E14: 100 | F14: 124 | G14: 124 | H14: 96 | I14: 104 | J14: 119 | K14: 44 | L14: 112 | M14: 119 | N14: 120 | O14: 1062 | P14: 12 min. 52,061 | Q14: 63 | R14: 12,255 sek.
B15: 3 | C15: 9 | D15: VMR | E15: 122 | F15: 95 | G15: 148 | H15: 89 | I15: 154 | J15: 82 | K15: 26 | L15: 135 | M15: 112 | N15: 69 | O15: 1032 | P15: 07 min. 32,631 | Q15: 54 | R15: 08,382 sek.
B16: 2 | C16: 10 | D16: lielmezi.lv | E16: 96 | F16: 84 | G16: 98 | H16: 75 | I16: 143 | J16: 105 | K16: 60 | L16: 149 | M16: 88 | N16: 100 | O16: 998 | P16: 10 min. 52,313 | Q16: 57 | R16: 11,444 sek.
B17: 2 | C17: 11 | D17: Bugatti Gožār | E17: 72 | F17: 88 | G17: 150 | H17: 97 | I17: 110 | J17: 109 | K17: 44 | L17: 144 | M17: 119 | N17: 60 | O17: 993 | P17: 09 min. 47,010 | Q17: 56 | R17: 10,482 sek.
B18: 2 | C18: 12 | D18: Stulbs ar nazi | E18: 97 | F18: 119 | G18: 173 | H18: 95 | I18: 158 | J18: 87 | K18: -33 | L18: 99 | M18: 129 | N18: 66 | O18: 990 | P18: 09 min. 39,871 | Q18: 55 | R18: 10,543 sek.
B19: 3 | C19: 13 | D19: Ļoti labi | E19: 88 | F19: 64 | G19: 104 | H19: 119 | I19: 164 | J19: 105 | K19: 50 | L19: 106 | M19: 79 | N19: 105 | O19: 984 | P19: 11 min. 00,816 | Q19: 58 | R19: 11,393 sek.
B20: 1 | C20: 14 | D20: PA Lielam-bidē! | E20: 102 | F20: 118 | G20: 184 | H20: 119 | I20: 117 | J20: 77 | K20: 15 | L20: 112 | M20: 94 | N20: 43 | O20: 981 | P20: 08 min. 34,958 | Q20: 53 | R20: 09,716 sek.
B21: 3 | C21: 15 | D21: Koklētāji | E21: 112 | F21: 65 | G21: 71 | H21: 118 | I21: 142 | J21: 119 | K21: 6 | L21: 127 | M21: 114 | N21: 105 | O21: 979 | P21: 09 min. 59,002 | Q21: 54 | R21: 11,093 sek.
B22: 3 | C22: 16 | D22: Kauliņi | E22: 81 | F22: 115 | G22: 158 | H22: 114 | I22: 115 | J22: 77 | K22: -2 | L22: 114 | M22: 78 | N22: 117 | O22: 967 | P22: 08 min. 28,767 | Q22: 52 | R22: 09,784 sek.
B23: 3 | C23: 17 | D23: Trakie Truši | E23: 64 | F23: 105 | G23: 121 | H23: 98 | I23: 133 | J23: 86 | K23: 14 | L23: 122 | M23: 110 | N23: 97 | O23: 950 | P23: 11 min. 19,300 | Q23: 56 | R23: 12,130 sek.
B24: 1 | C24: 18 | D24: lielhercogs | E24: 98 | F24: 150 | G24: 181 | H24: 64 | I24: 120 | J24: 60 | K24: 41 | L24: 116 | M24: 84 | N24: 29 | O24: 943 | P24: 11 min. 24,571 | Q24: 54 | R24: 12,677 sek.
B25: 1 | C25: 19 | D25: nezinu | E25: 94 | F25: 103 | G25: 79 | H25: 64 | I25: 82 | J25: 117 | K25: 55 | L25: 135 | M25: 79 | N25: 121 | O25: 929 | P25: 11 min. 30,955 | Q25: 56 | R25: 12,338 sek.
B26: 3 | C26: 20 | D26: Kapos futbola nav | E26: 127 | F26: 125 | G26: 168 | H26: 112 | I26: 97 | J26: 53 | K26: 9 | L26: 119 | M26: 95 | N26: 22 | O26: 927 | P26: 04 min. 39,443 | Q26: 44 | R26: 06,351 sek.
C27: 21 | D27: Panzera vergi | E27: 85 | F27: 104 | G27: 126 | H27: 49 | I27: 113 | J27: 103 | K27: 1 | L27: 106 | M27: 143 | N27: 94 | O27: 924 | P27: 06 min. 46,550 | Q27: 47 | R27: 08,650 sek.
C28: 22 | D28: Egle | E28: 95 | F28: 137 | G28: 146 | H28: 109 | I28: 152 | J28: 78 | K28: 19 | L28: 118 | M28: 48 | N28: 17 | O28: 919 | P28: 08 min. 41,904 | Q28: 50 | R28: 10,438 sek.
C29: 23 | D29: Vilciņi | E29: 91 | F29: 116 | G29: 116 | H29: 85 | I29: 40 | J29: 116 | K29: 13 | L29: 132 | M29: 75 | N29: 107 | O29: 891 | P29: 11 min. 25,981 | Q29: 53 | R29: 12,943 sek.
C30: 24 | D30: Tas viss ir manā galvā | E30: 93 | F30: 98 | G30: 144 | H30: 66 | I30: 148 | J30: 62 | K30: 9 | L30: 98 | M30: 114 | N30: 55 | O30: 887 | P30: 08 min. 52,354 | Q30: 50 | R30: 10,647 sek.
C31: 25 | D31: Izmisis kaķēns | E31: 75 | F31: 114 | G31: 172 | H31: 83 | I31: 142 | J31: 24 | K31: 38 | L31: 96 | M31: 78 | N31: 54 | O31: 876 | P31: 06 min. 54,783 | Q31: 46 | R31: 09,017 sek.
C32: 26 | D32: Bandītu perēklis | E32: 59 | F32: 88 | G32: 121 | H32: 80 | I32: 128 | J32: 88 | K32: 15 | L32: 66 | M32: 118 | N32: 108 | O32: 871 | P32: 07 min. 38,951 | Q32: 48 | R32: 09,561 sek.
C33: 27 | D33: Brilles +1 | E33: 78 | F33: 85 | G33: 116 | H33: 100 | I33: 77 | J33: 79 | K33: 33 | L33: 124 | M33: 63 | N33: 85 | O33: 840 | P33: 13 min. 13,769 | Q33: 55 | R33: 14,432 sek.
C34: 28 | D34: Ak vai! | E34: 79 | F34: 94 | G34: 122 | H34: 88 | I34: 69 | J34: 82 | K34: 22 | L34: 97 | M34: 93 | N34: 86 | O34: 832 | P34: 07 min. 22,410 | Q34: 46 | R34: 09,618 sek.
C35: 29 | D35: Klieši & draugi | E35: 86 | F35: 96 | G35: 86 | H35: 82 | I35: 90 | J35: 102 | K35: 50 | L35: 76 | M35: 66 | N35: 98 | O35: 832 | P35: 14 min. 05,853 | Q35: 55 | R35: 15,379 sek.
C36: 30 | D36: Virsskaņas alus iznīcinātājs | E36: 96 | F36: 135 | G36: 105 | H36: 70 | I36: 103 | J36: 61 | K36: 8 | L36: 65 | M36: 109 | N36: 61 | O36: 813 | P36: 07 min. 54,176 | Q36: 45 | R36: 10,537 sek.
C37: 31 | D37: VĪRIETIS PIE GINEKOLOGA | E37: 85 | F37: 126 | G37: 124 | H37: 53 | I37: 87 | J37: 65 | K37: 9 | L37: 120 | M37: 87 | N37: 43 | O37: 799 | P37: 07 min. 02,035 | Q37: 43 | R37: 09,815 sek.
C38: 32 | D38: uRound | E38: 91 | F38: 144 | G38: 117 | H38: 55 | I38: 82 | J38: 66 | K38: 26 | L38: 71 | M38: 96 | N38: 46 | O38: 794 | P38: 05 min. 44,538 | Q38: 41 | R38: 08,403 sek.
C39: 33 | D39: Rūķis Stūķis | E39: 74 | F39: 55 | G39: 126 | H39: 45 | I39: 134 | J39: 86 | K39: -12 | L39: 131 | M39: 106 | N39: 44 | O39: 789 | P39: 06 min. 44,189 | Q39: 43 | R39: 09,400 sek.
C40: 34 | D40: Pretējās mājas Skaidrīte | E40: 66 | F40: 69 | G40: 108 | H40: 73 | I40: 46 | J40: 72 | K40: 34 | L40: 129 | M40: 127 | N40: 62 | O40: 786 | P40: 08 min. 56,605 | Q40: 46 | R40: 11,665 sek.
C41: 35 | D41: Konstrukciju krīze | E41: 80 | F41: 108 | G41: 169 | H41: 54 | I41: 112 | J41: 65 | K41: -44 | L41: 110 | M41: 91 | N41: 39 | O41: 784 | P41: 06 min. 26,775 | Q41: 43 | R41: 08,995 sek.
C42: 36 | D42: STŪRĪŠI | E42: 96 | F42: 115 | G42: 142 | H42: 99 | I42: 61 | J42: 40 | K42: 1 | L42: 133 | M42: 82 | N42: 9 | O42: 778 | P42: 10 min. 48,068 | Q42: 48 | R42: 13,501 sek.
C43: 37 | D43: Agnusdei | E43: 83 | F43: 101 | G43: 126 | H43: 97 | I43: 86 | J43: 77 | K43: 19 | L43: 116 | M43: 29 | N43: 37 | O43: 771 | P43: 08 min. 03,094 | Q43: 43 | R43: 11,235 sek.
C44: 38 | D44: Subarubaru | E44: 97 | F44: 120 | G44: 121 | H44: 40 | I44: 139 | J44: 85 | K44: -22 | L44: 89 | M44: 54 | N44: 41 | O44: 764 | P44: 07 min. 49,895 | Q44: 44 | R44: 10,679 sek.
C45: 39 | D45: Bez-D | E45: 45 | F45: 91 | G45: 109 | H45: 59 | I45: 145 | J45: 81 | K45: -9 | L45: 102 | M45: 102 | N45: 31 | O45: 756 | P45: 10 min. 26,061 | Q45: 46 | R45: 13,610 sek.
C46: 40 | D46: kD | E46: 85 | F46: 85 | G46: 101 | H46: 60 | I46: 64 | J46: 49 | K46: -25 | L46: 135 | M46: 89 | N46: 105 | O46: 748 | P46: 09 min. 22,379 | Q46: 45 | R46: 12,497 sek.
C47: 41 | D47: Jaunanglijas gliemju zupa | E47: 45 | F47: 33 | G47: 152 | H47: 63 | I47: 102 | J47: 96 | K47: 4 | L47: 127 | M47: 57 | N47: 39 | O47: 718 | P47: 07 min. 08,589 | Q47: 41 | R47: 10,453 sek.
C48: 42 | D48: PutniņiCūciņas | E48: 109 | F48: 108 | G48: 107 | H48: 87 | I48: 46 | J48: 15 | K48: -7 | L48: 55 | M48: 72 | N48: 108 | O48: 700 | P48: 07 min. 01,161 | Q48: 39 | R48: 10,799 sek.
C49: 43 | D49: Tagad zinu - ko nezināju! | E49: 46 | F49: 69 | G49: 91 | H49: 84 | I49: 100 | J49: 50 | K49: 5 | L49: 125 | M49: 29 | N49: 96 | O49: 695 | P49: 08 min. 54,203 | Q49: 43 | R49: 12,423 sek.
C50: 44 | D50: Swan | E50: 53 | F50: 100 | G50: 143 | H50: 92 | I50: 67 | J50: 70 | K50: -44 | L50: 74 | M50: 55 | N50: 67 | O50: 677 | P50: 09 min. 16,563 | Q50: 43 | R50: 12,943 sek.
C51: 45 | D51: ŠanhajasSamurajs | E51: 51 | F51: 107 | G51: 97 | H51: 105 | I51: 53 | J51: 41 | K51: 5 | L51: 101 | M51: 63 | N51: 42 | O51: 665 | P51: 08 min. 12,033 | Q51: 40 | R51: 12,301 sek.
C52: 46 | D52: Backmarker | E52: 33 | F52: 99 | G52: 106 | H52: 52 | I52: 63 | J52: 86 | K52: 11 | L52: 87 | M52: 100 | N52: 22 | O52: 659 | P52: 05 min. 25,357 | Q52: 35 | R52: 09,296 sek.
C53: 47 | D53: ❄️Vēsu Prātu❄️ | E53: 49 | F53: 89 | G53: 101 | H53: 74 | I53: 64 | J53: 83 | K53: 22 | L53: 70 | M53: 36 | N53: 67 | O53: 655 | P53: 14 min. 11,946 | Q53: 48 | R53: 17,749 sek.
C54: 48 | D54: Pūpolu ielas ZOO | E54: 78 | F54: 104 | G54: 71 | H54: 50 | I54: 45 | J54: 50 | K54: 53 | L54: 95 | M54: 71 | N54: 34 | O54: 651 | P54: 07 min. 44,378 | Q54: 38 | R54: 12,220 sek.
C55: 49 | D55: Gatiņa dienasgrāmata | E55: 81 | F55: 68 | G55: 81 | H55: 86 | I55: 58 | J55: 66 | K55: -4 | L55: 55 | M55: 63 | N55: 60 | O55: 614 | P55: 10 min. 49,249 | Q55: 42 | R55: 15,458 sek.
C56: 50 | D56: Yuki | E56: 44 | F56: 33 | G56: 136 | H56: 100 | I56: 73 | J56: 24 | K56: -27 | L56: 95 | M56: 91 | N56: 34 | O56: 603 | P56: 11 min. 37,272 | Q56: 43 | R56: 16,216 sek.
C57: 51 | D57: Smilšu rukši | E57: 45 | F57: 87 | G57: 120 | H57: 72 | I57: 59 | J57: 20 | K57: -7 | L57: 58 | M57: 58 | N57: 64 | O57: 576 | P57: 07 min. 39,966 | Q57: 37 | R57: 12,432 sek.
C58: 52 | D58: Stams | E58: 51 | F58: 63 | G58: 117 | H58: 35 | I58: 59 | J58: 39 | K58: 3 | L58: 96 | M58: 56 | N58: 33 | O58: 552 | P58: 09 min. 23,038 | Q58: 38 | R58: 14,817 sek.
C59: 53 | D59: Pinus mugo | E59: 58 | F59: 48 | G59: 119 | H59: 56 | I59: 61 | J59: 18 | K59: -4 | L59: 95 | M59: 55 | N59: 21 | O59: 527 | P59: 07 min. 44,318 | Q59: 35 | R59: 13,266 sek.
C60: 54 | D60: Stabu team | E60: 49 | F60: 82 | G60: 111 | H60: 33 | I60: 41 | J60: 39 | K60: -19 | L60: 108 | M60: 59 | N60: 21 | O60: 524 | P60: 08 min. 04,031 | Q60: 36 | R60: 13,445 sek.
C61: 55 | D61: PurvaBridējs | E61: 44 | F61: 76 | G61: 69 | H61: 54 | I61: 83 | J61: 17 | K61: -23 | L61: 66 | M61: 61 | N61: 72 | O61: 519 | P61: 15 min. 21,145 | Q61: 44 | R61: 20,935 sek.
C62: 56 | D62: Kantoris3 | E62: 47 | F62: 106 | G62: 129 | H62: 27 | I62: 81 | J62: 16 | K62: -34 | L62: 87 | M62: 34 | N62: 23 | O62: 516 | P62: 08 min. 12,266 | Q62: 36 | R62: 13,674 sek.
C63: 57 | D63: The Ludvig | E63: 42 | F63: 56 | G63: 65 | H63: 55 | I63: 49 | J63: 75 | K63: -1 | L63: 57 | M63: 35 | N63: 59 | O63: 492 | P63: 11 min. 09,822 | Q63: 38 | R63: 17,627 sek.
C64: 58 | D64: Trīc Trīc Favorīts | E64: 0 | F64: 68 | G64: 112 | H64: 48 | I64: 98 | J64: 22 | K64: -17 | L64: 56 | M64: 53 | N64: 48 | O64: 488 | P64: 06 min. 10,985 | Q64: 31 | R64: 11,967 sek.
C65: 59 | D65: Blīkšķis&Bannijs | E65: 13 | F65: 45 | G65: 104 | H65: 39 | I65: 82 | J65: 20 | K65: -49 | L65: 34 | M65: 45 | N65: 57 | O65: 390 | P65: 06 min. 59,969 | Q65: 30 | R65: 13,999 sek.
C66: 60 | D66: ASIE STĀRĶI | E66: 31 | F66: 35 | G66: 135 | H66: 22 | I66: 90 | J66: 32 | K66: -82 | L66: 21 | M66: 24 | N66: 71 | O66: 379 | P66: 04 min. 47,871 | Q66: 27 | R66: 10,662 sek.
C67: 61 | D67: Danuks :) | E67: 9 | F67: 61 | G67: 175 | H67: 68 | I67: 17 | J67: 0 | K67: -60 | L67: 22 | M67: 16 | N67: 30 | O67: 338 | P67: 04 min. 46,186 | Q67: 26 | R67: 11,007 sek.

Sheet 1-50
C2: =tabula!C2 -> "Lielā viktorīna" (tiešsaistē / vebinārā) | 2024.gada 8.decembris
B3: Grupa | C3: =tabula!C3 -> # | D3: =tabula!D3 -> Dalībnieks | Raunds | Tēma | Max punkti raundā (bez bonusiem) | E3: =tabula!E3 -> 1 | F3: =tabula!F3 -> 2 | G3: =tabula!G3 -> 3 | H3: =tabula!H3 -> 4 | I3: =tabula!I3 -> 5 | J3: =tabula!J3 -> 6 | K3: =tabula!K3 -> 7 | L3: =tabula!L3 -> 8 | M3: =tabula!M3 -> 9 | N3: =tabula!N3 -> 10 | O3: =tabula!O3 -> KOPĀ | P3: =tabula!P3 -> Laiks kopā uz pareizajām atbildēm | Q3: =tabula!Q3 -> Pareizās atbildes (max 69) | R3: =tabula!R3 -> Vid.laiks uz 1 pareizo atb.
E4: =tabula!E4 -> Pavediens | F4: =tabula!F4 -> Divas atbildes | G4: =tabula!G4 -> Ekspresis | H4: =tabula!H4 -> Burtu mīkla | I4: =tabula!I4 -> Ķēde | J4: =tabula!J4 -> Latvija | K4: =tabula!K4 -> Risks: Dažādi | L4: =tabula!L4 -> Kas kopīgs? | M4: =tabula!M4 -> Liekais pazūd ārpus reklāmām | N4: =tabula!N4 -> Audio
E5: =tabula!E5 -> 150 | F5: =tabula!F5 -> 192 | G5: =tabula!G5 -> 240 | H5: =tabula!H5 -> 180 | I5: 175 | J5: =tabula!J5 -> 150 | K5: =tabula!K5 -> 120 | L5: =tabula!L5 -> 180 | M5: =tabula!M5 -> 156 | N5: =tabula!N5 -> 150 | O5: =tabula!O5 -> 1718
D6: =tabula!D6 -> Vidējie rādītāji | E6: =tabula!E6 -> 76.9 | F6: =tabula!F6 -> 97 | G6: =tabula!G6 -> 127.6 | H6: =tabula!H6 -> 79.6 | I6: =tabula!I6 -> 99.9 | J6: =tabula!J6 -> 68.9 | K6: =tabula!K6 -> 6.9 | L6: =tabula!L6 -> 103.2 | M6: =tabula!M6 -> 81.9 | N6: =tabula!N6 -> 65.1 | O6: =tabula!O6 -> 806.9
B7: 1 | C7: =tabula!C7 -> 1 | D7: =tabula!D7 -> Sindija DJV | E7: =tabula!E7 -> 136 | F7: =tabula!F7 -> 174 | G7: =tabula!G7 -> 212 | H7: =tabula!H7 -> 110 | I7: =tabula!I7 -> 169 | J7: =tabula!J7 -> 114 | K7: =tabula!K7 -> 3 | L7: =tabula!L7 -> 159 | M7: =tabula!M7 -> 112 | N7: =tabula!N7 -> 87 | O7: =tabula!O7 -> 1276 | P7: =tabula!P7 -> 05 min. 28,903 | Q7: =tabula!Q7 -> 59 | R7: =tabula!R7 -> 05,575 sek.
B8: 1 | C8: =tabula!C8 -> 2 | D8: =tabula!D8 -> Pundurplanēta | E8: =tabula!E8 -> 142 | F8: =tabula!F8 -> 147 | G8: =tabula!G8 -> 148 | H8: =tabula!H8 -> 144 | I8: =tabula!I8 -> 167 | J8: =tabula!J8 -> 101 | K8: =tabula!K8 -> 29 | L8: =tabula!L8 -> 145 | M8: =tabula!M8 -> 129 | N8: =tabula!N8 -> 107 | O8: =tabula!O8 -> 1259 | P8: =tabula!P8 -> 07 min. 06,205 | Q8: =tabula!Q8 -> 60 | R8: =tabula!R8 -> 07,103 sek.
B9: 3 | C9: =tabula!C9 -> 3 | D9: =tabula!D9 -> Bagete | E9: =tabula!E9 -> 112 | F9: =tabula!F9 -> 113 | G9: =tabula!G9 -> 160 | H9: =tabula!H9 -> 126 | I9: =tabula!I9 -> 181 | J9: =tabula!J9 -> 103 | K9: =tabula!K9 -> 25 | L9: =tabula!L9 -> 136 | M9: =tabula!M9 -> 110 | N9: =tabula!N9 -> 100 | O9: =tabula!O9 -> 1166 | P9: =tabula!P9 -> 08 min. 42,695 | Q9: =tabula!Q9 -> 60 | R9: =tabula!R9 -> 08,712 sek.
B10: 1 | C10: =tabula!C10 -> 4 | D10: =tabula!D10 -> Bunkurs_13 | E10: =tabula!E10 -> 100 | F10: =tabula!F10 -> 123 | G10: =tabula!G10 -> 161 | H10: =tabula!H10 -> 117 | I10: =tabula!I10 -> 161 | J10: =tabula!J10 -> 100 | K10: =tabula!K10 -> 29 | L10: =tabula!L10 -> 156 | M10: =tabula!M10 -> 114 | N10: =tabula!N10 -> 85 | O10: =tabula!O10 -> 1146 | P10: =tabula!P10 -> 08 min. 42,823 | Q10: =tabula!Q10 -> 59 | R10: =tabula!R10 -> 08,861 sek.
B11: 3 | C11: =tabula!C11 -> 5 | D11: =tabula!D11 -> GoGoFresh | E11: =tabula!E11 -> 94 | F11: =tabula!F11 -> 111 | G11: =tabula!G11 -> 200 | H11: =tabula!H11 -> 98 | I11: =tabula!I11 -> 86 | J11: =tabula!J11 -> 88 | K11: =tabula!K11 -> 36 | L11: =tabula!L11 -> 124 | M11: =tabula!M11 -> 114 | N11: =tabula!N11 -> 133 | O11: =tabula!O11 -> 1084 | P11: =tabula!P11 -> 08 min. 42,103 | Q11: =tabula!Q11 -> 57 | R11: =tabula!R11 -> 09,160 sek.
B12: 1 | C12: =tabula!C12 -> 6 | D12: =tabula!D12 -> Bugatti 21023 | E12: =tabula!E12 -> 112 | F12: =tabula!F12 -> 120 | G12: =tabula!G12 -> 131 | H12: =tabula!H12 -> 113 | I12: =tabula!I12 -> 141 | J12: =tabula!J12 -> 97 | K12: =tabula!K12 -> 24 | L12: =tabula!L12 -> 150 | M12: =tabula!M12 -> 104 | N12: =tabula!N12 -> 91 | O12: =tabula!O12 -> 1083 | P12: =tabula!P12 -> 12 min. 06,900 | Q12: =tabula!Q12 -> 63 | R12: =tabula!R12 -> 11,538 sek.
B13: 1 | C13: =tabula!C13 -> 7 | D13: =tabula!D13 -> Kapteinis M. Orgāns | E13: =tabula!E13 -> 123 | F13: =tabula!F13 -> 155 | G13: =tabula!G13 -> 173 | H13: =tabula!H13 -> 141 | I13: =tabula!I13 -> 139 | J13: =tabula!J13 -> 45 | K13: =tabula!K13 -> 33 | L13: =tabula!L13 -> 136 | M13: =tabula!M13 -> 111 | N13: =tabula!N13 -> 23 | O13: =tabula!O13 -> 1079 | P13: =tabula!P13 -> 05 min. 19,486 | Q13: =tabula!Q13 -> 51 | R13: =tabula!R13 -> 06,264 sek.
B14: 2 | C14: =tabula!C14 -> 8 | D14: =tabula!D14 -> Van Tūži | E14: =tabula!E14 -> 100 | F14: =tabula!F14 -> 124 | G14: =tabula!G14 -> 124 | H14: =tabula!H14 -> 96 | I14: =tabula!I14 -> 104 | J14: =tabula!J14 -> 119 | K14: =tabula!K14 -> 44 | L14: =tabula!L14 -> 112 | M14: =tabula!M14 -> 119 | N14: =tabula!N14 -> 120 | O14: =tabula!O14 -> 1062 | P14: =tabula!P14 -> 12 min. 52,061 | Q14: =tabula!Q14 -> 63 | R14: =tabula!R14 -> 12,255 sek.
B15: 3 | C15: =tabula!C15 -> 9 | D15: =tabula!D15 -> VMR | E15: =tabula!E15 -> 122 | F15: =tabula!F15 -> 95 | G15: =tabula!G15 -> 148 | H15: =tabula!H15 -> 89 | I15: =tabula!I15 -> 154 | J15: =tabula!J15 -> 82 | K15: =tabula!K15 -> 26 | L15: =tabula!L15 -> 135 | M15: =tabula!M15 -> 112 | N15: =tabula!N15 -> 69 | O15: =tabula!O15 -> 1032 | P15: =tabula!P15 -> 07 min. 32,631 | Q15: =tabula!Q15 -> 54 | R15: =tabula!R15 -> 08,382 sek.
B16: 2 | C16: =tabula!C16 -> 10 | D16: =tabula!D16 -> lielmezi.lv | E16: =tabula!E16 -> 96 | F16: =tabula!F16 -> 84 | G16: =tabula!G16 -> 98 | H16: =tabula!H16 -> 75 | I16: =tabula!I16 -> 143 | J16: =tabula!J16 -> 105 | K16: =tabula!K16 -> 60 | L16: =tabula!L16 -> 149 | M16: =tabula!M16 -> 88 | N16: =tabula!N16 -> 100 | O16: =tabula!O16 -> 998 | P16: =tabula!P16 -> 10 min. 52,313 | Q16: =tabula!Q16 -> 57 | R16: =tabula!R16 -> 11,444 sek.
B17: 2 | C17: =tabula!C17 -> 11 | D17: =tabula!D17 -> Bugatti Gožār | E17: =tabula!E17 -> 72 | F17: =tabula!F17 -> 88 | G17: =tabula!G17 -> 150 | H17: =tabula!H17 -> 97 | I17: =tabula!I17 -> 110 | J17: =tabula!J17 -> 109 | K17: =tabula!K17 -> 44 | L17: =tabula!L17 -> 144 | M17: =tabula!M17 -> 119 | N17: =tabula!N17 -> 60 | O17: =tabula!O17 -> 993 | P17: =tabula!P17 -> 09 min. 47,010 | Q17: =tabula!Q17 -> 56 | R17: =tabula!R17 -> 10,482 sek.
B18: 2 | C18: =tabula!C18 -> 12 | D18: =tabula!D18 -> Stulbs ar nazi | E18: =tabula!E18 -> 97 | F18: =tabula!F18 -> 119 | G18: =tabula!G18 -> 173 | H18: =tabula!H18 -> 95 | I18: =tabula!I18 -> 158 | J18: =tabula!J18 -> 87 | K18: =tabula!K18 -> -33 | L18: =tabula!L18 -> 99 | M18: =tabula!M18 -> 129 | N18: =tabula!N18 -> 66 | O18: =tabula!O18 -> 990 | P18: =tabula!P18 -> 09 min. 39,871 | Q18: =tabula!Q18 -> 55 | R18: =tabula!R18 -> 10,543 sek.
B19: 3 | C19: =tabula!C19 -> 13 | D19: =tabula!D19 -> Ļoti labi | E19: =tabula!E19 -> 88 | F19: =tabula!F19 -> 64 | G19: =tabula!G19 -> 104 | H19: =tabula!H19 -> 119 | I19: =tabula!I19 -> 164 | J19: =tabula!J19 -> 105 | K19: =tabula!K19 -> 50 | L19: =tabula!L19 -> 106 | M19: =tabula!M19 -> 79 | N19: =tabula!N19 -> 105 | O19: =tabula!O19 -> 984 | P19: =tabula!P19 -> 11 min. 00,816 | Q19: =tabula!Q19 -> 58 | R19: =tabula!R19 -> 11,393 sek.
B20: 1 | C20: =tabula!C20 -> 14 | D20: =tabula!D20 -> PA Lielam-bidē! | E20: =tabula!E20 -> 102 | F20: =tabula!F20 -> 118 | G20: =tabula!G20 -> 184 | H20: =tabula!H20 -> 119 | I20: =tabula!I20 -> 117 | J20: =tabula!J20 -> 77 | K20: =tabula!K20 -> 15 | L20: =tabula!L20 -> 112 | M20: =tabula!M20 -> 94 | N20: =tabula!N20 -> 43 | O20: =tabula!O20 -> 981 | P20: =tabula!P20 -> 08 min. 34,958 | Q20: =tabula!Q20 -> 53 | R20: =tabula!R20 -> 09,716 sek.
B21: 3 | C21: =tabula!C21 -> 15 | D21: =tabula!D21 -> Koklētāji | E21: =tabula!E21 -> 112 | F21: =tabula!F21 -> 65 | G21: =tabula!G21 -> 71 | H21: =tabula!H21 -> 118 | I21: =tabula!I21 -> 142 | J21: =tabula!J21 -> 119 | K21: =tabula!K21 -> 6 | L21: =tabula!L21 -> 127 | M21: =tabula!M21 -> 114 | N21: =tabula!N21 -> 105 | O21: =tabula!O21 -> 979 | P21: =tabula!P21 -> 09 min. 59,002 | Q21: =tabula!Q21 -> 54 | R21: =tabula!R21 -> 11,093 sek.
B22: 3 | C22: =tabula!C22 -> 16 | D22: =tabula!D22 -> Kauliņi | E22: =tabula!E22 -> 81 | F22: =tabula!F22 -> 115 | G22: =tabula!G22 -> 158 | H22: =tabula!H22 -> 114 | I22: =tabula!I22 -> 115 | J22: =tabula!J22 -> 77 | K22: =tabula!K22 -> -2 | L22: =tabula!L22 -> 114 | M22: =tabula!M22 -> 78 | N22: =tabula!N22 -> 117 | O22: =tabula!O22 -> 967 | P22: =tabula!P22 -> 08 min. 28,767 | Q22: =tabula!Q22 -> 52 | R22: =tabula!R22 -> 09,784 sek.
B23: 3 | C23: =tabula!C23 -> 17 | D23: =tabula!D23 -> Trakie Truši | E23: =tabula!E23 -> 64 | F23: =tabula!F23 -> 105 | G23: =tabula!G23 -> 121 | H23: =tabula!H23 -> 98 | I23: =tabula!I23 -> 133 | J23: =tabula!J23 -> 86 | K23: =tabula!K23 -> 14 | L23: =tabula!L23 -> 122 | M23: =tabula!M23 -> 110 | N23: =tabula!N23 -> 97 | O23: =tabula!O23 -> 950 | P23: =tabula!P23 -> 11 min. 19,300 | Q23: =tabula!Q23 -> 56 | R23: =tabula!R23 -> 12,130 sek.
B24: 1 | C24: =tabula!C24 -> 18 | D24: =tabula!D24 -> lielhercogs | E24: =tabula!E24 -> 98 | F24: =tabula!F24 -> 150 | G24: =tabula!G24 -> 181 | H24: =tabula!H24 -> 64 | I24: =tabula!I24 -> 120 | J24: =tabula!J24 -> 60 | K24: =tabula!K24 -> 41 | L24: =tabula!L24 -> 116 | M24: =tabula!M24 -> 84 | N24: =tabula!N24 -> 29 | O24: =tabula!O24 -> 943 | P24: =tabula!P24 -> 11 min. 24,571 | Q24: =tabula!Q24 -> 54 | R24: =tabula!R24 -> 12,677 sek.
B25: 1 | C25: =tabula!C25 -> 19 | D25: =tabula!D25 -> nezinu | E25: =tabula!E25 -> 94 | F25: =tabula!F25 -> 103 | G25: =tabula!G25 -> 79 | H25: =tabula!H25 -> 64 | I25: =tabula!I25 -> 82 | J25: =tabula!J25 -> 117 | K25: =tabula!K25 -> 55 | L25: =tabula!L25 -> 135 | M25: =tabula!M25 -> 79 | N25: =tabula!N25 -> 121 | O25: =tabula!O25 -> 929 | P25: =tabula!P25 -> 11 min. 30,955 | Q25: =tabula!Q25 -> 56 | R25: =tabula!R25 -> 12,338 sek.
B26: 3 | C26: =tabula!C26 -> 20 | D26: =tabula!D26 -> Kapos futbola nav | E26: =tabula!E26 -> 127 | F26: =tabula!F26 -> 125 | G26: =tabula!G26 -> 168 | H26: =tabula!H26 -> 112 | I26: =tabula!I26 -> 97 | J26: =tabula!J26 -> 53 | K26: =tabula!K26 -> 9 | L26: =tabula!L26 -> 119 | M26: =tabula!M26 -> 95 | N26: =tabula!N26 -> 22 | O26: =tabula!O26 -> 927 | P26: =tabula!P26 -> 04 min. 39,443 | Q26: =tabula!Q26 -> 44 | R26: =tabula!R26 -> 06,351 sek.
C27: =tabula!C27 -> 21 | D27: =tabula!D27 -> Panzera vergi | E27: =tabula!E27 -> 85 | F27: =tabula!F27 -> 104 | G27: =tabula!G27 -> 126 | H27: =tabula!H27 -> 49 | I27: =tabula!I27 -> 113 | J27: =tabula!J27 -> 103 | K27: =tabula!K27 -> 1 | L27: =tabula!L27 -> 106 | M27: =tabula!M27 -> 143 | N27: =tabula!N27 -> 94 | O27: =tabula!O27 -> 924 | P27: =tabula!P27 -> 06 min. 46,550 | Q27: =tabula!Q27 -> 47 | R27: =tabula!R27 -> 08,650 sek.
C28: =tabula!C28 -> 22 | D28: =tabula!D28 -> Egle | E28: =tabula!E28 -> 95 | F28: =tabula!F28 -> 137 | G28: =tabula!G28 -> 146 | H28: =tabula!H28 -> 109 | I28: =tabula!I28 -> 152 | J28: =tabula!J28 -> 78 | K28: =tabula!K28 -> 19 | L28: =tabula!L28 -> 118 | M28: =tabula!M28 -> 48 | N28: =tabula!N28 -> 17 | O28: =tabula!O28 -> 919 | P28: =tabula!P28 -> 08 min. 41,904 | Q28: =tabula!Q28 -> 50 | R28: =tabula!R28 -> 10,438 sek.
C29: =tabula!C29 -> 23 | D29: =tabula!D29 -> Vilciņi | E29: =tabula!E29 -> 91 | F29: =tabula!F29 -> 116 | G29: =tabula!G29 -> 116 | H29: =tabula!H29 -> 85 | I29: =tabula!I29 -> 40 | J29: =tabula!J29 -> 116 | K29: =tabula!K29 -> 13 | L29: =tabula!L29 -> 132 | M29: =tabula!M29 -> 75 | N29: =tabula!N29 -> 107 | O29: =tabula!O29 -> 891 | P29: =tabula!P29 -> 11 min. 25,981 | Q29: =tabula!Q29 -> 53 | R29: =tabula!R29 -> 12,943 sek.
C30: =tabula!C30 -> 24 | D30: =tabula!D30 -> Tas viss ir manā galvā | E30: =tabula!E30 -> 93 | F30: =tabula!F30 -> 98 | G30: =tabula!G30 -> 144 | H30: =tabula!H30 -> 66 | I30: =tabula!I30 -> 148 | J30: =tabula!J30 -> 62 | K30: =tabula!K30 -> 9 | L30: =tabula!L30 -> 98 | M30: =tabula!M30 -> 114 | N30: =tabula!N30 -> 55 | O30: =tabula!O30 -> 887 | P30: =tabula!P30 -> 08 min. 52,354 | Q30: =tabula!Q30 -> 50 | R30: =tabula!R30 -> 10,647 sek.
C31: =tabula!C31 -> 25 | D31: =tabula!D31 -> Izmisis kaķēns | E31: =tabula!E31 -> 75 | F31: =tabula!F31 -> 114 | G31: =tabula!G31 -> 172 | H31: =tabula!H31 -> 83 | I31: =tabula!I31 -> 142 | J31: =tabula!J31 -> 24 | K31: =tabula!K31 -> 38 | L31: =tabula!L31 -> 96 | M31: =tabula!M31 -> 78 | N31: =tabula!N31 -> 54 | O31: =tabula!O31 -> 876 | P31: =tabula!P31 -> 06 min. 54,783 | Q31: =tabula!Q31 -> 46 | R31: =tabula!R31 -> 09,017 sek.
C32: =tabula!C32 -> 26 | D32: =tabula!D32 -> Bandītu perēklis | E32: =tabula!E32 -> 59 | F32: =tabula!F32 -> 88 | G32: =tabula!G32 -> 121 | H32: =tabula!H32 -> 80 | I32: =tabula!I32 -> 128 | J32: =tabula!J32 -> 88 | K32: =tabula!K32 -> 15 | L32: =tabula!L32 -> 66 | M32: =tabula!M32 -> 118 | N32: =tabula!N32 -> 108 | O32: =tabula!O32 -> 871 | P32: =tabula!P32 -> 07 min. 38,951 | Q32: =tabula!Q32 -> 48 | R32: =tabula!R32 -> 09,561 sek.
C33: =tabula!C33 -> 27 | D33: =tabula!D33 -> Brilles +1 | E33: =tabula!E33 -> 78 | F33: =tabula!F33 -> 85 | G33: =tabula!G33 -> 116 | H33: =tabula!H33 -> 100 | I33: =tabula!I33 -> 77 | J33: =tabula!J33 -> 79 | K33: =tabula!K33 -> 33 | L33: =tabula!L33 -> 124 | M33: =tabula!M33 -> 63 | N33: =tabula!N33 -> 85 | O33: =tabula!O33 -> 840 | P33: =tabula!P33 -> 13 min. 13,769 | Q33: =tabula!Q33 -> 55 | R33: =tabula!R33 -> 14,432 sek.
C34: =tabula!C34 -> 28 | D34: =tabula!D34 -> Ak vai! | E34: =tabula!E34 -> 79 | F34: =tabula!F34 -> 94 | G34: =tabula!G34 -> 122 | H34: =tabula!H34 -> 88 | I34: =tabula!I34 -> 69 | J34: =tabula!J34 -> 82 | K34: =tabula!K34 -> 22 | L34: =tabula!L34 -> 97 | M34: =tabula!M34 -> 93 | N34: =tabula!N34 -> 86 | O34: =tabula!O34 -> 832 | P34: =tabula!P34 -> 07 min. 22,410 | Q34: =tabula!Q34 -> 46 | R34: =tabula!R34 -> 09,618 sek.
C35: =tabula!C35 -> 29 | D35: =tabula!D35 -> Klieši & draugi | E35: =tabula!E35 -> 86 | F35: =tabula!F35 -> 96 | G35: =tabula!G35 -> 86 | H35: =tabula!H35 -> 82 | I35: =tabula!I35 -> 90 | J35: =tabula!J35 -> 102 | K35: =tabula!K35 -> 50 | L35: =tabula!L35 -> 76 | M35: =tabula!M35 -> 66 | N35: =tabula!N35 -> 98 | O35: =tabula!O35 -> 832 | P35: =tabula!P35 -> 14 min. 05,853 | Q35: =tabula!Q35 -> 55 | R35: =tabula!R35 -> 15,379 sek.
C36: =tabula!C36 -> 30 | D36: =tabula!D36 -> Virsskaņas alus iznīcinātājs | E36: =tabula!E36 -> 96 | F36: =tabula!F36 -> 135 | G36: =tabula!G36 -> 105 | H36: =tabula!H36 -> 70 | I36: =tabula!I36 -> 103 | J36: =tabula!J36 -> 61 | K36: =tabula!K36 -> 8 | L36: =tabula!L36 -> 65 | M36: =tabula!M36 -> 109 | N36: =tabula!N36 -> 61 | O36: =tabula!O36 -> 813 | P36: =tabula!P36 -> 07 min. 54,176 | Q36: =tabula!Q36 -> 45 | R36: =tabula!R36 -> 10,537 sek.
C37: =tabula!C37 -> 31 | D37: =tabula!D37 -> VĪRIETIS PIE GINEKOLOGA | E37: =tabula!E37 -> 85 | F37: =tabula!F37 -> 126 | G37: =tabula!G37 -> 124 | H37: =tabula!H37 -> 53 | I37: =tabula!I37 -> 87 | J37: =tabula!J37 -> 65 | K37: =tabula!K37 -> 9 | L37: =tabula!L37 -> 120 | M37: =tabula!M37 -> 87 | N37: =tabula!N37 -> 43 | O37: =tabula!O37 -> 799 | P37: =tabula!P37 -> 07 min. 02,035 | Q37: =tabula!Q37 -> 43 | R37: =tabula!R37 -> 09,815 sek.
C38: =tabula!C38 -> 32 | D38: =tabula!D38 -> uRound | E38: =tabula!E38 -> 91 | F38: =tabula!F38 -> 144 | G38: =tabula!G38 -> 117 | H38: =tabula!H38 -> 55 | I38: =tabula!I38 -> 82 | J38: =tabula!J38 -> 66 | K38: =tabula!K38 -> 26 | L38: =tabula!L38 -> 71 | M38: =tabula!M38 -> 96 | N38: =tabula!N38 -> 46 | O38: =tabula!O38 -> 794 | P38: =tabula!P38 -> 05 min. 44,538 | Q38: =tabula!Q38 -> 41 | R38: =tabula!R38 -> 08,403 sek.
C39: =tabula!C39 -> 33 | D39: =tabula!D39 -> Rūķis Stūķis | E39: =tabula!E39 -> 74 | F39: =tabula!F39 -> 55 | G39: =tabula!G39 -> 126 | H39: =tabula!H39 -> 45 | I39: =tabula!I39 -> 134 | J39: =tabula!J39 -> 86 | K39: =tabula!K39 -> -12 | L39: =tabula!L39 -> 131 | M39: =tabula!M39 -> 106 | N39: =tabula!N39 -> 44 | O39: =tabula!O39 -> 789 | P39: =tabula!P39 -> 06 min. 44,189 | Q39: =tabula!Q39 -> 43 | R39: =tabula!R39 -> 09,400 sek.
C40: =tabula!C40 -> 34 | D40: =tabula!D40 -> Pretējās mājas Skaidrīte | E40: =tabula!E40 -> 66 | F40: =tabula!F40 -> 69 | G40: =tabula!G40 -> 108 | H40: =tabula!H40 -> 73 | I40: =tabula!I40 -> 46 | J40: =tabula!J40 -> 72 | K40: =tabula!K40 -> 34 | L40: =tabula!L40 -> 129 | M40: =tabula!M40 -> 127 | N40: =tabula!N40 -> 62 | O40: =tabula!O40 -> 786 | P40: =tabula!P40 -> 08 min. 56,605 | Q40: =tabula!Q40 -> 46 | R40: =tabula!R40 -> 11,665 sek.
C41: =tabula!C41 -> 35 | D41: =tabula!D41 -> Konstrukciju krīze | E41: =tabula!E41 -> 80 | F41: =tabula!F41 -> 108 | G41: =tabula!G41 -> 169 | H41: =tabula!H41 -> 54 | I41: =tabula!I41 -> 112 | J41: =tabula!J41 -> 65 | K41: =tabula!K41 -> -44 | L41: =tabula!L41 -> 110 | M41: =tabula!M41 -> 91 | N41: =tabula!N41 -> 39 | O41: =tabula!O41 -> 784 | P41: =tabula!P41 -> 06 min. 26,775 | Q41: =tabula!Q41 -> 43 | R41: =tabula!R41 -> 08,995 sek.
C42: =tabula!C42 -> 36 | D42: =tabula!D42 -> STŪRĪŠI | E42: =tabula!E42 -> 96 | F42: =tabula!F42 -> 115 | G42: =tabula!G42 -> 142 | H42: =tabula!H42 -> 99 | I42: =tabula!I42 -> 61 | J42: =tabula!J42 -> 40 | K42: =tabula!K42 -> 1 | L42: =tabula!L42 -> 133 | M42: =tabula!M42 -> 82 | N42: =tabula!N42 -> 9 | O42: =tabula!O42 -> 778 | P42: =tabula!P42 -> 10 min. 48,068 | Q42: =tabula!Q42 -> 48 | R42: =tabula!R42 -> 13,501 sek.
C43: =tabula!C43 -> 37 | D43: =tabula!D43 -> Agnusdei | E43: =tabula!E43 -> 83 | F43: =tabula!F43 -> 101 | G43: =tabula!G43 -> 126 | H43: =tabula!H43 -> 97 | I43: =tabula!I43 -> 86 | J43: =tabula!J43 -> 77 | K43: =tabula!K43 -> 19 | L43: =tabula!L43 -> 116 | M43: =tabula!M43 -> 29 | N43: =tabula!N43 -> 37 | O43: =tabula!O43 -> 771 | P43: =tabula!P43 -> 08 min. 03,094 | Q43: =tabula!Q43 -> 43 | R43: =tabula!R43 -> 11,235 sek.
C44: =tabula!C44 -> 38 | D44: =tabula!D44 -> Subarubaru | E44: =tabula!E44 -> 97 | F44: =tabula!F44 -> 120 | G44: =tabula!G44 -> 121 | H44: =tabula!H44 -> 40 | I44: =tabula!I44 -> 139 | J44: =tabula!J44 -> 85 | K44: =tabula!K44 -> -22 | L44: =tabula!L44 -> 89 | M44: =tabula!M44 -> 54 | N44: =tabula!N44 -> 41 | O44: =tabula!O44 -> 764 | P44: =tabula!P44 -> 07 min. 49,895 | Q44: =tabula!Q44 -> 44 | R44: =tabula!R44 -> 10,679 sek.
C45: =tabula!C45 -> 39 | D45: =tabula!D45 -> Bez-D | E45: =tabula!E45 -> 45 | F45: =tabula!F45 -> 91 | G45: =tabula!G45 -> 109 | H45: =tabula!H45 -> 59 | I45: =tabula!I45 -> 145 | J45: =tabula!J45 -> 81 | K45: =tabula!K45 -> -9 | L45: =tabula!L45 -> 102 | M45: =tabula!M45 -> 102 | N45: =tabula!N45 -> 31 | O45: =tabula!O45 -> 756 | P45: =tabula!P45 -> 10 min. 26,061 | Q45: =tabula!Q45 -> 46 | R45: =tabula!R45 -> 13,610 sek.
C46: =tabula!C46 -> 40 | D46: =tabula!D46 -> kD | E46: =tabula!E46 -> 85 | F46: =tabula!F46 -> 85 | G46: =tabula!G46 -> 101 | H46: =tabula!H46 -> 60 | I46: =tabula!I46 -> 64 | J46: =tabula!J46 -> 49 | K46: =tabula!K46 -> -25 | L46: =tabula!L46 -> 135 | M46: =tabula!M46 -> 89 | N46: =tabula!N46 -> 105 | O46: =tabula!O46 -> 748 | P46: =tabula!P46 -> 09 min. 22,379 | Q46: =tabula!Q46 -> 45 | R46: =tabula!R46 -> 12,497 sek.
C47: =tabula!C47 -> 41 | D47: =tabula!D47 -> Jaunanglijas gliemju zupa | E47: =tabula!E47 -> 45 | F47: =tabula!F47 -> 33 | G47: =tabula!G47 -> 152 | H47: =tabula!H47 -> 63 | I47: =tabula!I47 -> 102 | J47: =tabula!J47 -> 96 | K47: =tabula!K47 -> 4 | L47: =tabula!L47 -> 127 | M47: =tabula!M47 -> 57 | N47: =tabula!N47 -> 39 | O47: =tabula!O47 -> 718 | P47: =tabula!P47 -> 07 min. 08,589 | Q47: =tabula!Q47 -> 41 | R47: =tabula!R47 -> 10,453 sek.
C48: =tabula!C48 -> 42 | D48: =tabula!D48 -> PutniņiCūciņas | E48: =tabula!E48 -> 109 | F48: =tabula!F48 -> 108 | G48: =tabula!G48 -> 107 | H48: =tabula!H48 -> 87 | I48: =tabula!I48 -> 46 | J48: =tabula!J48 -> 15 | K48: =tabula!K48 -> -7 | L48: =tabula!L48 -> 55 | M48: =tabula!M48 -> 72 | N48: =tabula!N48 -> 108 | O48: =tabula!O48 -> 700 | P48: =tabula!P48 -> 07 min. 01,161 | Q48: =tabula!Q48 -> 39 | R48: =tabula!R48 -> 10,799 sek.
C49: =tabula!C49 -> 43 | D49: =tabula!D49 -> Tagad zinu - ko nezināju! | E49: =tabula!E49 -> 46 | F49: =tabula!F49 -> 69 | G49: =tabula!G49 -> 91 | H49: =tabula!H49 -> 84 | I49: =tabula!I49 -> 100 | J49: =tabula!J49 -> 50 | K49: =tabula!K49 -> 5 | L49: =tabula!L49 -> 125 | M49: =tabula!M49 -> 29 | N49: =tabula!N49 -> 96 | O49: =tabula!O49 -> 695 | P49: =tabula!P49 -> 08 min. 54,203 | Q49: =tabula!Q49 -> 43 | R49: =tabula!R49 -> 12,423 sek.
C50: =tabula!C50 -> 44 | D50: =tabula!D50 -> Swan | E50: =tabula!E50 -> 53 | F50: =tabula!F50 -> 100 | G50: =tabula!G50 -> 143 | H50: =tabula!H50 -> 92 | I50: =tabula!I50 -> 67 | J50: =tabula!J50 -> 70 | K50: =tabula!K50 -> -44 | L50: =tabula!L50 -> 74 | M50: =tabula!M50 -> 55 | N50: =tabula!N50 -> 67 | O50: =tabula!O50 -> 677 | P50: =tabula!P50 -> 09 min. 16,563 | Q50: =tabula!Q50 -> 43 | R50: =tabula!R50 -> 12,943 sek.
C51: =tabula!C51 -> 45 | D51: =tabula!D51 -> ŠanhajasSamurajs | E51: =tabula!E51 -> 51 | F51: =tabula!F51 -> 107 | G51: =tabula!G51 -> 97 | H51: =tabula!H51 -> 105 | I51: =tabula!I51 -> 53 | J51: =tabula!J51 -> 41 | K51: =tabula!K51 -> 5 | L51: =tabula!L51 -> 101 | M51: =tabula!M51 -> 63 | N51: =tabula!N51 -> 42 | O51: =tabula!O51 -> 665 | P51: =tabula!P51 -> 08 min. 12,033 | Q51: =tabula!Q51 -> 40 | R51: =tabula!R51 -> 12,301 sek.
C52: =tabula!C52 -> 46 | D52: =tabula!D52 -> Backmarker | E52: =tabula!E52 -> 33 | F52: =tabula!F52 -> 99 | G52: =tabula!G52 -> 106 | H52: =tabula!H52 -> 52 | I52: =tabula!I52 -> 63 | J52: =tabula!J52 -> 86 | K52: =tabula!K52 -> 11 | L52: =tabula!L52 -> 87 | M52: =tabula!M52 -> 100 | N52: =tabula!N52 -> 22 | O52: =tabula!O52 -> 659 | P52: =tabula!P52 -> 05 min. 25,357 | Q52: =tabula!Q52 -> 35 | R52: =tabula!R52 -> 09,296 sek.
C53: =tabula!C53 -> 47 | D53: =tabula!D53 -> ❄️Vēsu Prātu❄️ | E53: =tabula!E53 -> 49 | F53: =tabula!F53 -> 89 | G53: =tabula!G53 -> 101 | H53: =tabula!H53 -> 74 | I53: =tabula!I53 -> 64 | J53: =tabula!J53 -> 83 | K53: =tabula!K53 -> 22 | L53: =tabula!L53 -> 70 | M53: =tabula!M53 -> 36 | N53: =tabula!N53 -> 67 | O53: =tabula!O53 -> 655 | P53: =tabula!P53 -> 14 min. 11,946 | Q53: =tabula!Q53 -> 48 | R53: =tabula!R53 -> 17,749 sek.
C54: =tabula!C54 -> 48 | D54: =tabula!D54 -> Pūpolu ielas ZOO | E54: =tabula!E54 -> 78 | F54: =tabula!F54 -> 104 | G54: =tabula!G54 -> 71 | H54: =tabula!H54 -> 50 | I54: =tabula!I54 -> 45 | J54: =tabula!J54 -> 50 | K54: =tabula!K54 -> 53 | L54: =tabula!L54 -> 95 | M54: =tabula!M54 -> 71 | N54: =tabula!N54 -> 34 | O54: =tabula!O54 -> 651 | P54: =tabula!P54 -> 07 min. 44,378 | Q54: =tabula!Q54 -> 38 | R54: =tabula!R54 -> 12,220 sek.
C55: =tabula!C55 -> 49 | D55: =tabula!D55 -> Gatiņa dienasgrāmata | E55: =tabula!E55 -> 81 | F55: =tabula!F55 -> 68 | G55: =tabula!G55 -> 81 | H55: =tabula!H55 -> 86 | I55: =tabula!I55 -> 58 | J55: =tabula!J55 -> 66 | K55: =tabula!K55 -> -4 | L55: =tabula!L55 -> 55 | M55: =tabula!M55 -> 63 | N55: =tabula!N55 -> 60 | O55: =tabula!O55 -> 614 | P55: =tabula!P55 -> 10 min. 49,249 | Q55: =tabula!Q55 -> 42 | R55: =tabula!R55 -> 15,458 sek.
C56: =tabula!C56 -> 50 | D56: =tabula!D56 -> Yuki | E56: =tabula!E56 -> 44 | F56: =tabula!F56 -> 33 | G56: =tabula!G56 -> 136 | H56: =tabula!H56 -> 100 | I56: =tabula!I56 -> 73 | J56: =tabula!J56 -> 24 | K56: =tabula!K56 -> -27 | L56: =tabula!L56 -> 95 | M56: =tabula!M56 -> 91 | N56: =tabula!N56 -> 34 | O56: =tabula!O56 -> 603 | P56: =tabula!P56 -> 11 min. 37,272 | Q56: =tabula!Q56 -> 43 | R56: =tabula!R56 -> 16,216 sek.
C57: =tabula!C57 -> 51 | D57: =tabula!D57 -> Smilšu rukši | E57: =tabula!E57 -> 45 | F57: =tabula!F57 -> 87 | G57: =tabula!G57 -> 120 | H57: =tabula!H57 -> 72 | I57: =tabula!I57 -> 59 | J57: =tabula!J57 -> 20 | K57: =tabula!K57 -> -7 | L57: =tabula!L57 -> 58 | M57: =tabula!M57 -> 58 | N57: =tabula!N57 -> 64 | O57: =tabula!O57 -> 576 | P57: =tabula!P57 -> 07 min. 39,966 | Q57: =tabula!Q57 -> 37 | R57: =tabula!R57 -> 12,432 sek.
C58: =tabula!C58 -> 52 | D58: =tabula!D58 -> Stams | E58: =tabula!E58 -> 51 | F58: =tabula!F58 -> 63 | G58: =tabula!G58 -> 117 | H58: =tabula!H58 -> 35 | I58: =tabula!I58 -> 59 | J58: =tabula!J58 -> 39 | K58: =tabula!K58 -> 3 | L58: =tabula!L58 -> 96 | M58: =tabula!M58 -> 56 | N58: =tabula!N58 -> 33 | O58: =tabula!O58 -> 552 | P58: =tabula!P58 -> 09 min. 23,038 | Q58: =tabula!Q58 -> 38 | R58: =tabula!R58 -> 14,817 sek.
C59: =tabula!C59 -> 53 | D59: =tabula!D59 -> Pinus mugo | E59: =tabula!E59 -> 58 | F59: =tabula!F59 -> 48 | G59: =tabula!G59 -> 119 | H59: =tabula!H59 -> 56 | I59: =tabula!I59 -> 61 | J59: =tabula!J59 -> 18 | K59: =tabula!K59 -> -4 | L59: =tabula!L59 -> 95 | M59: =tabula!M59 -> 55 | N59: =tabula!N59 -> 21 | O59: =tabula!O59 -> 527 | P59: =tabula!P59 -> 07 min. 44,318 | Q59: =tabula!Q59 -> 35 | R59: =tabula!R59 -> 13,266 sek.
C60: =tabula!C60 -> 54 | D60: =tabula!D60 -> Stabu team | E60: =tabula!E60 -> 49 | F60: =tabula!F60 -> 82 | G60: =tabula!G60 -> 111 | H60: =tabula!H60 -> 33 | I60: =tabula!I60 -> 41 | J60: =tabula!J60 -> 39 | K60: =tabula!K60 -> -19 | L60: =tabula!L60 -> 108 | M60: =tabula!M60 -> 59 | N60: =tabula!N60 -> 21 | O60: =tabula!O60 -> 524 | P60: =tabula!P60 -> 08 min. 04,031 | Q60: =tabula!Q60 -> 36 | R60: =tabula!R60 -> 13,445 sek.
C61: =tabula!C61 -> 55 | D61: =tabula!D61 -> PurvaBridējs | E61: =tabula!E61 -> 44 | F61: =tabula!F61 -> 76 | G61: =tabula!G61 -> 69 | H61: =tabula!H61 -> 54 | I61: =tabula!I61 -> 83 | J61: =tabula!J61 -> 17 | K61: =tabula!K61 -> -23 | L61: =tabula!L61 -> 66 | M61: =tabula!M61 -> 61 | N61: =tabula!N61 -> 72 | O61: =tabula!O61 -> 519 | P61: =tabula!P61 -> 15 min. 21,145 | Q61: =tabula!Q61 -> 44 | R61: =tabula!R61 -> 20,935 sek.
C62: =tabula!C62 -> 56 | D62: =tabula!D62 -> Kantoris3 | E62: =tabula!E62 -> 47 | F62: =tabula!F62 -> 106 | G62: =tabula!G62 -> 129 | H62: =tabula!H62 -> 27 | I62: =tabula!I62 -> 81 | J62: =tabula!J62 -> 16 | K62: =tabula!K62 -> -34 | L62: =tabula!L62 -> 87 | M62: =tabula!M62 -> 34 | N62: =tabula!N62 -> 23 | O62: =tabula!O62 -> 516 | P62: =tabula!P62 -> 08 min. 12,266 | Q62: =tabula!Q62 -> 36 | R62: =tabula!R62 -> 13,674 sek.
C63: =tabula!C63 -> 57 | D63: =tabula!D63 -> The Ludvig | E63: =tabula!E63 -> 42 | F63: =tabula!F63 -> 56 | G63: =tabula!G63 -> 65 | H63: =tabula!H63 -> 55 | I63: =tabula!I63 -> 49 | J63: =tabula!J63 -> 75 | K63: =tabula!K63 -> -1 | L63: =tabula!L63 -> 57 | M63: =tabula!M63 -> 35 | N63: =tabula!N63 -> 59 | O63: =tabula!O63 -> 492 | P63: =tabula!P63 -> 11 min. 09,822 | Q63: =tabula!Q63 -> 38 | R63: =tabula!R63 -> 17,627 sek.
C64: =tabula!C64 -> 58 | D64: =tabula!D64 -> Trīc Trīc Favorīts | E64: =tabula!E64 -> 0 | F64: =tabula!F64 -> 68 | G64: =tabula!G64 -> 112 | H64: =tabula!H64 -> 48 | I64: =tabula!I64 -> 98 | J64: =tabula!J64 -> 22 | K64: =tabula!K64 -> -17 | L64: =tabula!L64 -> 56 | M64: =tabula!M64 -> 53 | N64: =tabula!N64 -> 48 | O64: =tabula!O64 -> 488 | P64: =tabula!P64 -> 06 min. 10,985 | Q64: =tabula!Q64 -> 31 | R64: =tabula!R64 -> 11,967 sek.
C65: =tabula!C65 -> 59 | D65: =tabula!D65 -> Blīkšķis&Bannijs | E65: =tabula!E65 -> 13 | F65: =tabula!F65 -> 45 | G65: =tabula!G65 -> 104 | H65: =tabula!H65 -> 39 | I65: =tabula!I65 -> 82 | J65: =tabula!J65 -> 20 | K65: =tabula!K65 -> -49 | L65: =tabula!L65 -> 34 | M65: =tabula!M65 -> 45 | N65: =tabula!N65 -> 57 | O65: =tabula!O65 -> 390 | P65: =tabula!P65 -> 06 min. 59,969 | Q65: =tabula!Q65 -> 30 | R65: =tabula!R65 -> 13,999 sek.
C66: =tabula!C66 -> 60 | D66: =tabula!D66 -> ASIE STĀRĶI | E66: =tabula!E66 -> 31 | F66: =tabula!F66 -> 35 | G66: =tabula!G66 -> 135 | H66: =tabula!H66 -> 22 | I66: =tabula!I66 -> 90 | J66: =tabula!J66 -> 32 | K66: =tabula!K66 -> -82 | L66: =tabula!L66 -> 21 | M66: =tabula!M66 -> 24 | N66: =tabula!N66 -> 71 | O66: =tabula!O66 -> 379 | P66: =tabula!P66 -> 04 min. 47,871 | Q66: =tabula!Q66 -> 27 | R66: =tabula!R66 -> 10,662 sek.
C67: =tabula!C67 -> 61 | D67: =tabula!D67 -> Danuks :) | E67: =tabula!E67 -> 9 | F67: =tabula!F67 -> 61 | G67: =tabula!G67 -> 175 | H67: =tabula!H67 -> 68 | I67: =tabula!I67 -> 17 | J67: =tabula!J67 -> 0 | K67: =tabula!K67 -> -60 | L67: =tabula!L67 -> 22 | M67: =tabula!M67 -> 16 | N67: =tabula!N67 -> 30 | O67: =tabula!O67 -> 338 | P67: =tabula!P67 -> 04 min. 46,186 | Q67: =tabula!Q67 -> 26 | R67: =tabula!R67 -> 11,007 sek.
C69: LIELDRAUGS
C71: ATBALSTĪTĀJI

Sheet raundi
B2: =CONCATENATE(tabula!C2," --> Raundu uzvarētāji") -> "Lielā viktorīna" (tiešsaistē / vebinārā) | 2024.gada 8.decembris --> Raundu uzvarētāji
B3: # | C3: Raunda nosaukums | D3: Dalībnieks | E3: Rezultāts | F3: AVG | G3: MAX | H3: % no max
B4: 1 | C4: =TRANSPOSE(tabula!E4:N4) -> Pavediens | D4: Pundurplanēta | E4: 142 | F4: =TRANSPOSE(tabula!E6:N6) -> 76.9 | G4: =TRANSPOSE(tabula!E5:N5) -> 150 | H4: =E4/G4 -> 0.9466666667
B5: 2 | C5: Divas atbildes | D5: Sindija DJV | E5: 174 | F5: 97 | G5: 192 | H5: =E5/G5 -> 0.90625
B6: 3 | C6: Ekspresis | D6: Sindija DJV | E6: 212 | F6: 127.6 | G6: 240 | H6: 0.8833333333
B7: 4 | C7: Burtu mīkla | D7: Pundurplanēta | E7: 144 | F7: 79.6 | G7: 180 | H7: 0.8
B8: 5 | C8: Ķēde | D8: Bagete | E8: 181 | F8: 99.9 | G8: 200 | H8: 0.905
B9: 6 | C9: Latvija | D9: Van Tūži | E9: 119 | F9: 68.9 | G9: 150 | H9: 0.7933333333
B10: 7 | C10: Risks: Dažādi | D10: lielmezi.lv | E10: 60 | F10: 6.9 | G10: 120 | H10: 0.5
B11: 8 | C11: Kas kopīgs? | D11: Sindija DJV | E11: 159 | F11: 103.2 | G11: 180 | H11: 0.8833333333
B12: 9 | C12: Liekais pazūd ārpus reklāmām | D12: Panzera vergi | E12: 143 | F12: 81.9 | G12: 156 | H12: 0.9166666667
B13: 10 | C13: Audio | D13: GoGoFresh | E13: 133 | F13: 65.1 | G13: 150 | H13: 0.8866666667
B14: - | C14: Uzvarētājs | E14: =tabula!O7 -> 1276 | F14: =tabula!O6 -> 806.9 | G14: =SUM(G4:G13) -> 1718 | H14: =E14/G14 -> 0.7427240978
C15: =tabula!D7 -> Sindija DJV
B17: LIELDRAUGS
B19: ATBALSTĪTĀJI
